[Event "Titled Tuesday Blitz February 28 Late 2023"]
[White "Quirke, Jeffrey"]
[Black "Jenkins, Drake"]
[WhiteFideId "2013029"]
[BlackFideId "2022397"]
[WhiteElo "2210"]
[BlackElo "2300"]
[Result "0-1"]
[Round "10"]
[TimeControl "180+2"]
[Date "2023.02.28"]
[WhiteClock "0:00:09"]
[BlackClock "0:00:11"]

1. e4 {[%clk 0:03:00]}  c5 {[%clk 0:02:59]} 2. Nc3 {[%clk 0:02:59]}  g6 {[%clk 0:02:59]} 3. f4 {[%clk 0:02:58]}  Bg7 {[%clk 0:02:59]} 4. Nf3 {[%clk 0:02:58]}  Nc6 {[%clk 0:02:59]} 5. a4 {[%clk 0:02:59]}  e6 {[%clk 0:02:59]} 6. e5 {[%clk 0:02:58]}  d6 {[%clk 0:02:57]} 7. Bb5 {[%clk 0:02:55]}  Ne7 {[%clk 0:02:53]} 8. Ne4 {[%clk 0:02:37]}  dxe5 {[%clk 0:02:52]} 9. fxe5 {[%clk 0:02:35]}  O-O {[%clk 0:02:48]} 10. d4 {[%clk 0:02:09]}  Nxd4 {[%clk 0:02:39]} 11. Nxd4 {[%clk 0:02:05]}  Qxd4 {[%clk 0:02:29]} 12. Qxd4 {[%clk 0:02:04]}  cxd4 {[%clk 0:02:30]} 13. Bf4 {[%clk 0:02:05]}  a6 {[%clk 0:02:26]} 14. Bc4 {[%clk 0:02:00]}  Nc6 {[%clk 0:02:21]} 15. Nd6 {[%clk 0:01:55]}  Bxe5 {[%clk 0:02:08]} 16. O-O {[%clk 0:01:50]}  Bg7 {[%clk 0:01:26]} 17. Ne4 {[%clk 0:01:37]}  h6 {[%clk 0:01:18]} 18. Bd6 {[%clk 0:01:33]}  Rd8 {[%clk 0:01:10]} 19. Bc5 {[%clk 0:01:25]}  Bd7 {[%clk 0:01:05]} 20. b4 {[%clk 0:01:14]}  Ne5 {[%clk 0:00:51]} 21. Bb3 {[%clk 0:01:14]}  Bc6 {[%clk 0:00:42]} 22. Nf6+ {[%clk 0:00:58]}  Bxf6 {[%clk 0:00:35]} 23. Rxf6 {[%clk 0:00:58]}  d3 {[%clk 0:00:32]} 24. cxd3 {[%clk 0:00:55]}  Rxd3 {[%clk 0:00:31]} 25. Bc2 {[%clk 0:00:45]}  Rd2 {[%clk 0:00:31]} 26. Bb3 {[%clk 0:00:31]}  Rxg2+ {[%clk 0:00:29]} 27. Kf1 {[%clk 0:00:31]}  Ng4 {[%clk 0:00:22]} 28. Rf4 {[%clk 0:00:26]}  Nxh2+ {[%clk 0:00:22]} 29. Ke1 {[%clk 0:00:25]}  Nf3+ {[%clk 0:00:22]} 30. Kd1 {[%clk 0:00:23]}  Rd8+ {[%clk 0:00:21]} 31. Kc1 {[%clk 0:00:23]}  Ne5 {[%clk 0:00:17]} 32. Bc2 {[%clk 0:00:12]}  Nd3+ {[%clk 0:00:15]} 33. Bxd3 {[%clk 0:00:12]}  Rxd3 {[%clk 0:00:15]} 34. b5 {[%clk 0:00:09]}  Rc3+ {[%clk 0:00:11]} 0-1


[Site "https://www.chess.com"]

[Event "Titled Tuesday Blitz February 28 Late 2023"]
[White "Guimaraes, Wagner Peixoto"]
[Black "Sabar, Ethmane Daouda"]
[WhiteFideId "2100940"]
[BlackFideId "19600097"]
[WhiteElo "2185"]
[BlackElo "1950"]
[Result "1-0"]
[Round "10"]
[TimeControl "180+2"]
[Date "2023.02.28"]
[WhiteClock "0:00:31"]
[BlackClock "0:01:03"]

1. d4 {[%clk 0:02:58]}  d5 {[%clk 0:02:59]} 2. Nf3 {[%clk 0:02:55]}  Nf6 {[%clk 0:02:57]} 3. c3 {[%clk 0:02:55]}  g6 {[%clk 0:02:54]} 4. Bg5 {[%clk 0:02:54]}  Bg7 {[%clk 0:02:54]} 5. Qc2 {[%clk 0:02:53]}  O-O {[%clk 0:02:54]} 6. Nbd2 {[%clk 0:02:53]}  Bf5 {[%clk 0:02:51]} 7. Qb3 {[%clk 0:02:53]}  b6 {[%clk 0:02:50]} 8. e3 {[%clk 0:02:53]}  Nbd7 {[%clk 0:02:48]} 9. Bb5 {[%clk 0:02:35]}  c5 {[%clk 0:02:38]} 10. Bc6 {[%clk 0:02:31]}  c4 {[%clk 0:02:23]} 11. Qa3 {[%clk 0:02:20]}  Rc8 {[%clk 0:02:19]} 12. Bxd7 {[%clk 0:01:51]}  Qxd7 {[%clk 0:02:20]} 13. Ne5 {[%clk 0:01:46]}  Qc7 {[%clk 0:02:15]} 14. Bf4 {[%clk 0:01:42]}  Qb7 {[%clk 0:02:10]} 15. h3 {[%clk 0:01:27]}  Nd7 {[%clk 0:01:57]} 16. Qxe7 {[%clk 0:01:12]}  Rce8 {[%clk 0:01:46]} 17. Qd6 {[%clk 0:00:58]}  Re6 {[%clk 0:01:41]} 18. Qxd7 {[%clk 0:00:55]}  Qxd7 {[%clk 0:01:30]} 19. Nxd7 {[%clk 0:00:56]}  Rd8 {[%clk 0:01:13]} 20. Ne5 {[%clk 0:00:50]}  f6 {[%clk 0:01:14]} 21. Nef3 {[%clk 0:00:50]}  Bd3 {[%clk 0:01:13]} 22. Ng1 {[%clk 0:00:39]}  g5 {[%clk 0:01:11]} 23. Bg3 {[%clk 0:00:39]}  f5 {[%clk 0:01:11]} 24. O-O-O {[%clk 0:00:36]}  Rf8 {[%clk 0:01:03]} 25. Ngf3 {[%clk 0:00:35]}  f4 {[%clk 0:01:03]} 26. Nxg5 {[%clk 0:00:31]} 1-0


[Site "https://www.chess.com"]

[Event "Titled Tuesday Blitz February 28 Late 2023"]
[White "Wang, Alexander J"]
[Black "Levine, David"]
[WhiteFideId "30955270"]
[BlackFideId "2011611"]
[WhiteElo "2219"]
[BlackElo "2133"]
[Result "1-0"]
[Round "10"]
[TimeControl "180+2"]
[Date "2023.02.28"]
[WhiteClock "0:00:22"]
[BlackClock "0:00:02"]

1. e4 {[%clk 0:03:00]}  e5 {[%clk 0:02:59]} 2. Nf3 {[%clk 0:03:00]}  Nc6 {[%clk 0:02:59]} 3. Bb5 {[%clk 0:03:00]}  a6 {[%clk 0:02:58]} 4. Ba4 {[%clk 0:03:00]}  Nf6 {[%clk 0:02:58]} 5. d4 {[%clk 0:03:00]}  b5 {[%clk 0:02:54]} 6. dxe5 {[%clk 0:03:00]}  bxa4 {[%clk 0:02:52]} 7. exf6 {[%clk 0:03:00]}  Qxf6 {[%clk 0:02:53]} 8. Nc3 {[%clk 0:02:59]}  a3 {[%clk 0:02:52]} 9. Nd5 {[%clk 0:02:57]}  Qd8 {[%clk 0:02:52]} 10. Bf4 {[%clk 0:02:43]}  d6 {[%clk 0:02:51]} 11. bxa3 {[%clk 0:02:39]}  Be6 {[%clk 0:02:45]} 12. O-O {[%clk 0:02:38]}  Ne7 {[%clk 0:02:35]} 13. c4 {[%clk 0:02:37]}  c6 {[%clk 0:02:30]} 14. Ne3 {[%clk 0:02:25]}  Ng6 {[%clk 0:02:27]} 15. Bg3 {[%clk 0:02:23]}  h5 {[%clk 0:02:25]} 16. h3 {[%clk 0:02:21]}  Qd7 {[%clk 0:02:17]} 17. Nd4 {[%clk 0:02:18]}  h4 {[%clk 0:02:00]} 18. Bh2 {[%clk 0:02:16]}  Be7 {[%clk 0:01:54]} 19. Ndf5 {[%clk 0:02:08]}  Rd8 {[%clk 0:01:34]} 20. Nxg7+ {[%clk 0:02:04]}  Kf8 {[%clk 0:01:34]} 21. Ngf5 {[%clk 0:02:01]}  Bf6 {[%clk 0:01:30]} 22. Qxd6+ {[%clk 0:01:45]}  Kg8 {[%clk 0:01:20]} 23. Rad1 {[%clk 0:01:37]}  Qb7 {[%clk 0:01:10]} 24. Qc5 {[%clk 0:01:23]}  Rc8 {[%clk 0:00:51]} 25. Nd6 {[%clk 0:01:20]}  Qe7 {[%clk 0:00:46]} 26. Qb6 {[%clk 0:01:11]}  Rd8 {[%clk 0:00:41]} 27. Nef5 {[%clk 0:00:57]}  Bxf5 {[%clk 0:00:38]} 28. Nxf5 {[%clk 0:00:58]}  Qe8 {[%clk 0:00:35]} 29. Rxd8 {[%clk 0:00:56]}  Bxd8 {[%clk 0:00:34]} 30. Qb8 {[%clk 0:00:53]}  Kh7 {[%clk 0:00:30]} 31. Nd6 {[%clk 0:00:40]}  Qd7 {[%clk 0:00:26]} 32. Qb2 {[%clk 0:00:32]}  Bc7 {[%clk 0:00:22]} 33. c5 {[%clk 0:00:31]}  Qe6 {[%clk 0:00:17]} 34. Nf5 {[%clk 0:00:28]}  Be5 {[%clk 0:00:10]} 35. Bxe5 {[%clk 0:00:27]}  Nxe5 {[%clk 0:00:11]} 36. Rd1 {[%clk 0:00:24]}  Rg8 {[%clk 0:00:02]} 37. Rd6 {[%clk 0:00:22]} 1-0


[Site "https://www.chess.com"]

[Event "Titled Tuesday Blitz February 28 Late 2023"]
[White "Davidson, Kevin"]
[Black "Desideri, Ricardo Maruchi"]
[WhiteFideId "2056810"]
[BlackFideId "2110440"]
[WhiteElo "2151"]
[BlackElo "1945"]
[Result "1-0"]
[Round "10"]
[TimeControl "180+2"]
[Date "2023.02.28"]
[WhiteClock "0:00:29"]
[BlackClock "0:01:21"]

1. e4 {[%clk 0:03:00]}  c5 {[%clk 0:02:58]} 2. Nf3 {[%clk 0:03:00]}  d6 {[%clk 0:02:58]} 3. d4 {[%clk 0:03:01]}  cxd4 {[%clk 0:02:58]} 4. Nxd4 {[%clk 0:03:02]}  Nf6 {[%clk 0:02:59]} 5. Nc3 {[%clk 0:03:02]}  a6 {[%clk 0:02:59]} 6. h3 {[%clk 0:03:02]}  e6 {[%clk 0:02:57]} 7. g4 {[%clk 0:03:02]}  b5 {[%clk 0:02:55]} 8. Bg2 {[%clk 0:03:01]}  Bb7 {[%clk 0:02:52]} 9. O-O {[%clk 0:03:01]}  h6 {[%clk 0:02:50]} 10. Re1 {[%clk 0:02:55]}  Qc7 {[%clk 0:02:48]} 11. a4 {[%clk 0:02:47]}  b4 {[%clk 0:02:46]} 12. Nd5 {[%clk 0:02:46]}  exd5 {[%clk 0:02:44]} 13. exd5+ {[%clk 0:02:47]}  Kd8 {[%clk 0:02:41]} 14. a5 {[%clk 0:02:35]}  Be7 {[%clk 0:02:36]} 15. Nf5 {[%clk 0:02:33]}  Bf8 {[%clk 0:02:34]} 16. Qd4 {[%clk 0:02:26]}  Nbd7 {[%clk 0:02:27]} 17. Qxb4 {[%clk 0:02:15]}  g6 {[%clk 0:02:23]} 18. Nd4 {[%clk 0:02:11]}  Nxd5 {[%clk 0:02:18]} 19. Qb3 {[%clk 0:02:00]}  Nc5 {[%clk 0:01:58]} 20. Qc4 {[%clk 0:01:45]}  Nf6 {[%clk 0:01:48]} 21. Bxb7 {[%clk 0:01:22]}  Qxb7 {[%clk 0:01:40]} 22. b4 {[%clk 0:01:19]}  Nce4 {[%clk 0:01:29]} 23. b5 {[%clk 0:00:41]}  Rc8 {[%clk 0:01:26]} 24. Nc6+ {[%clk 0:00:41]}  Kd7 {[%clk 0:01:22]} 25. Qxf7+ {[%clk 0:00:33]}  Be7 {[%clk 0:01:21]} 26. Qxe7# {[%clk 0:00:29]} 1-0


[Site "https://www.chess.com"]

[Event "Titled Tuesday Blitz February 28 Late 2023"]
[White "Cueto, Jonny"]
[Black "Osmonbekov, Talaibek"]
[WhiteFideId "3300145"]
[BlackFideId "2017253"]
[WhiteElo "2212"]
[BlackElo "2135"]
[Result "0-1"]
[Round "10"]
[TimeControl "180+2"]
[Date "2023.02.28"]
[WhiteClock "0:00:01"]
[BlackClock "0:00:44"]

1. d4 {[%clk 0:03:00]}  e6 {[%clk 0:02:56]} 2. Nf3 {[%clk 0:02:57]}  f5 {[%clk 0:02:56]} 3. Bf4 {[%clk 0:02:55]}  Nf6 {[%clk 0:02:56]} 4. e3 {[%clk 0:02:55]}  g6 {[%clk 0:02:57]} 5. h4 {[%clk 0:02:53]}  Bg7 {[%clk 0:02:57]} 6. c4 {[%clk 0:02:50]}  O-O {[%clk 0:02:54]} 7. Bd3 {[%clk 0:02:50]}  d6 {[%clk 0:02:53]} 8. h5 {[%clk 0:02:50]}  Nxh5 {[%clk 0:02:52]} 9. Rxh5 {[%clk 0:02:51]}  gxh5 {[%clk 0:02:52]} 10. Nc3 {[%clk 0:02:41]}  Nc6 {[%clk 0:02:49]} 11. Qc2 {[%clk 0:01:33]}  e5 {[%clk 0:02:40]} 12. Bg5 {[%clk 0:01:33]}  Qe8 {[%clk 0:02:34]} 13. dxe5 {[%clk 0:01:32]}  Nb4 {[%clk 0:02:26]} 14. Qd2 {[%clk 0:01:25]}  Nxd3+ {[%clk 0:02:22]} 15. Qxd3 {[%clk 0:01:26]}  dxe5 {[%clk 0:02:22]} 16. Qc2 {[%clk 0:01:06]}  h6 {[%clk 0:02:15]} 17. Bh4 {[%clk 0:01:04]}  c6 {[%clk 0:01:45]} 18. O-O-O {[%clk 0:01:03]}  Be6 {[%clk 0:01:45]} 19. c5 {[%clk 0:00:58]}  Qg6 {[%clk 0:01:35]} 20. Be7 {[%clk 0:00:47]}  Rf7 {[%clk 0:01:13]} 21. Nh4 {[%clk 0:00:40]}  Qg4 {[%clk 0:01:13]} 22. f3 {[%clk 0:00:31]}  Qg3 {[%clk 0:01:09]} 23. Ne2 {[%clk 0:00:29]}  Qh2 {[%clk 0:01:09]} 24. Rd8+ {[%clk 0:00:11]}  Rxd8 {[%clk 0:01:05]} 25. Bxd8 {[%clk 0:00:11]}  Qh1+ {[%clk 0:01:00]} 26. Kd2 {[%clk 0:00:10]}  Rd7+ {[%clk 0:00:58]} 27. Kc3 {[%clk 0:00:10]}  Rxd8 {[%clk 0:00:58]} 28. Nxf5 {[%clk 0:00:11]}  Qxg2 {[%clk 0:00:52]} 29. Ne7+ {[%clk 0:00:09]}  Kf7 {[%clk 0:00:51]} 30. Ng6 {[%clk 0:00:09]}  Qxg6 {[%clk 0:00:50]} 31. e4 {[%clk 0:00:10]}  Rd4 {[%clk 0:00:49]} 32. Nxd4 {[%clk 0:00:09]}  exd4+ {[%clk 0:00:49]} 33. Kd3 {[%clk 0:00:09]}  Qg1 {[%clk 0:00:48]} 34. Ke2 {[%clk 0:00:04]}  Qe3+ {[%clk 0:00:47]} 35. Kd1 {[%clk 0:00:03]}  d3 {[%clk 0:00:46]} 36. Qa4 {[%clk 0:00:02]}  Qe2+ {[%clk 0:00:45]} 37. Kc1 {[%clk 0:00:02]}  Qe1+ {[%clk 0:00:44]} 38. Qd1 {[%clk 0:00:01]}  Bxb2+ {[%clk 0:00:44]} 39. Kxb2 {[%clk 0:00:01]}  Qxd1 {[%clk 0:00:44]} 0-1


[Site "https://www.chess.com"]

[Event "Titled Tuesday Blitz February 28 Late 2023"]
[White "rikchessmx"]
[Black "Einarsson, Halldor Gretar"]
[BlackFideId "2300150"]
[WhiteElo "2163"]
[BlackElo "2126"]
[Result "1/2-1/2"]
[Round "10"]
[TimeControl "180+2"]
[Date "2023.02.28"]
[WhiteClock "0:00:24"]
[BlackClock "0:00:13"]

1. e4 {[%clk 0:03:00]}  c5 {[%clk 0:02:57]} 2. Nf3 {[%clk 0:03:00]}  Nc6 {[%clk 0:02:57]} 3. d4 {[%clk 0:03:00]}  cxd4 {[%clk 0:02:57]} 4. Nxd4 {[%clk 0:03:01]}  Nf6 {[%clk 0:02:58]} 5. Nxc6 {[%clk 0:02:59]}  bxc6 {[%clk 0:02:56]} 6. Bd3 {[%clk 0:02:59]}  d5 {[%clk 0:02:53]} 7. e5 {[%clk 0:02:52]}  Ng4 {[%clk 0:02:52]} 8. f4 {[%clk 0:02:50]}  Qb6 {[%clk 0:02:50]} 9. Qe2 {[%clk 0:02:48]}  Nh6 {[%clk 0:02:03]} 10. Nc3 {[%clk 0:02:40]}  Nf5 {[%clk 0:02:01]} 11. Na4 {[%clk 0:02:32]}  Qa5+ {[%clk 0:01:49]} 12. Nc3 {[%clk 0:02:31]}  Nd4 {[%clk 0:01:43]} 13. Qf2 {[%clk 0:02:29]}  c5 {[%clk 0:01:08]} 14. Bd2 {[%clk 0:01:04]}  Qd8 {[%clk 0:01:01]} 15. Be3 {[%clk 0:01:00]}  e6 {[%clk 0:00:53]} 16. Bxd4 {[%clk 0:01:00]}  cxd4 {[%clk 0:00:53]} 17. Qxd4 {[%clk 0:01:01]}  Be7 {[%clk 0:00:49]} 18. Bb5+ {[%clk 0:01:01]}  Bd7 {[%clk 0:00:48]} 19. Qa4 {[%clk 0:01:02]}  a6 {[%clk 0:00:34]} 20. Bxd7+ {[%clk 0:01:01]}  Qxd7 {[%clk 0:00:34]} 21. Qxd7+ {[%clk 0:01:01]}  Kxd7 {[%clk 0:00:34]} 22. O-O-O {[%clk 0:01:01]}  Rab8 {[%clk 0:00:32]} 23. g4 {[%clk 0:01:00]}  Rhc8 {[%clk 0:00:30]} 24. f5 {[%clk 0:00:58]}  Bg5+ {[%clk 0:00:26]} 25. Rd2 {[%clk 0:00:57]}  Bxd2+ {[%clk 0:00:24]} 26. Kxd2 {[%clk 0:00:58]}  Rb4 {[%clk 0:00:22]} 27. h3 {[%clk 0:00:53]}  Rxb2 {[%clk 0:00:22]} 28. Kd3 {[%clk 0:00:43]}  Rb4 {[%clk 0:00:19]} 29. Rf1 {[%clk 0:00:42]}  Rbc4 {[%clk 0:00:19]} 30. Ne2 {[%clk 0:00:35]}  Rxc2 {[%clk 0:00:18]} 31. fxe6+ {[%clk 0:00:35]}  fxe6 {[%clk 0:00:18]} 32. Rf7+ {[%clk 0:00:34]}  Ke8 {[%clk 0:00:17]} 33. Rxg7 {[%clk 0:00:34]}  Rxa2 {[%clk 0:00:17]} 34. Nd4 {[%clk 0:00:32]}  Ra3+ {[%clk 0:00:16]} 35. Kd2 {[%clk 0:00:31]}  Rxh3 {[%clk 0:00:15]} 36. Nxe6 {[%clk 0:00:30]}  Rb8 {[%clk 0:00:14]} 37. Kc2 {[%clk 0:00:26]}  Rc8+ {[%clk 0:00:13]} 38. Kd2 {[%clk 0:00:26]}  Rb8 {[%clk 0:00:13]} 39. Kc2 {[%clk 0:00:26]}  Rc8+ {[%clk 0:00:13]} 40. Kd2 {[%clk 0:00:24]} 1/2-1/2


[Site "https://www.chess.com"]

[Event "Titled Tuesday Blitz February 28 Late 2023"]
[White "Pissama Ntsaou, Martial"]
[Black "Sanchez, Robert"]
[WhiteFideId "17400864"]
[BlackFideId "2034360"]
[WhiteElo "2066"]
[BlackElo "2383"]
[Result "1-0"]
[Round "10"]
[TimeControl "180+2"]
[Date "2023.02.28"]
[WhiteClock "0:00:54"]
[BlackClock "0:01:31"]

1. e4 {[%clk 0:02:56]}  e5 {[%clk 0:02:55]} 2. Nf3 {[%clk 0:02:56]}  Nc6 {[%clk 0:02:54]} 3. Bc4 {[%clk 0:02:56]}  Nf6 {[%clk 0:02:54]} 4. d3 {[%clk 0:02:56]}  Bc5 {[%clk 0:02:52]} 5. O-O {[%clk 0:02:56]}  d6 {[%clk 0:02:52]} 6. c3 {[%clk 0:02:53]}  a6 {[%clk 0:02:52]} 7. Bb3 {[%clk 0:02:50]}  Be6 {[%clk 0:02:50]} 8. Re1 {[%clk 0:02:49]}  h6 {[%clk 0:02:47]} 9. Bxe6 {[%clk 0:02:44]}  fxe6 {[%clk 0:02:47]} 10. Qb3 {[%clk 0:02:44]}  Qc8 {[%clk 0:02:44]} 11. Nbd2 {[%clk 0:02:38]}  O-O {[%clk 0:02:42]} 12. Nf1 {[%clk 0:02:38]}  Ng4 {[%clk 0:02:40]} 13. Re2 {[%clk 0:02:35]}  Rb8 {[%clk 0:02:27]} 14. h3 {[%clk 0:02:35]}  Nf6 {[%clk 0:02:26]} 15. Be3 {[%clk 0:02:34]}  Bxe3 {[%clk 0:02:19]} 16. Rxe3 {[%clk 0:02:30]}  Nh5 {[%clk 0:02:19]} 17. g3 {[%clk 0:02:18]}  Qe8 {[%clk 0:02:10]} 18. Kg2 {[%clk 0:02:17]}  Qg6 {[%clk 0:02:08]} 19. N1h2 {[%clk 0:02:00]}  Nf4+ {[%clk 0:02:06]} 20. Kf1 {[%clk 0:01:42]}  Nxh3 {[%clk 0:02:06]} 21. Ke2 {[%clk 0:01:42]}  Rf7 {[%clk 0:01:59]} 22. Rh1 {[%clk 0:01:38]}  Ng5 {[%clk 0:01:49]} 23. Nxg5 {[%clk 0:01:29]}  hxg5 {[%clk 0:01:49]} 24. Ng4 {[%clk 0:01:26]}  b5 {[%clk 0:01:44]} 25. Rh2 {[%clk 0:01:16]}  Rbf8 {[%clk 0:01:43]} 26. a4 {[%clk 0:01:08]}  b4 {[%clk 0:01:39]} 27. Qc4 {[%clk 0:01:02]}  d5 {[%clk 0:01:33]} 28. Qxc6 {[%clk 0:01:01]}  d4 {[%clk 0:01:34]} 29. Nxe5 {[%clk 0:00:55]}  Qf6 {[%clk 0:01:31]} 30. cxd4 {[%clk 0:00:54]} 1-0


[Site "https://www.chess.com"]

[Event "Titled Tuesday Blitz February 28 Late 2023"]
[White "Govender, Kaedan"]
[Black "Kujawski, Adam"]
[WhiteFideId "14322072"]
[BlackFideId "1100920"]
[WhiteElo "1962"]
[BlackElo "2054"]
[Result "0-1"]
[Round "10"]
[TimeControl "180+2"]
[Date "2023.02.28"]
[WhiteClock "0:00:56"]
[BlackClock "0:00:14"]

1. d4 {[%clk 0:02:44]}  Nf6 {[%clk 0:02:59]} 2. c4 {[%clk 0:02:44]}  e6 {[%clk 0:02:59]} 3. Nc3 {[%clk 0:02:42]}  Bb4 {[%clk 0:02:59]} 4. a3 {[%clk 0:02:42]}  Bxc3+ {[%clk 0:02:58]} 5. bxc3 {[%clk 0:02:43]}  c5 {[%clk 0:02:58]} 6. f3 {[%clk 0:02:42]}  d6 {[%clk 0:02:58]} 7. e4 {[%clk 0:02:43]}  e5 {[%clk 0:02:59]} 8. Bg5 {[%clk 0:02:41]}  h6 {[%clk 0:02:54]} 9. Bh4 {[%clk 0:02:40]}  g5 {[%clk 0:02:36]} 10. Bg3 {[%clk 0:02:40]}  Nc6 {[%clk 0:02:35]} 11. dxe5 {[%clk 0:02:38]}  dxe5 {[%clk 0:02:34]} 12. Qa4 {[%clk 0:02:38]}  Kf8 {[%clk 0:01:49]} 13. Rd1 {[%clk 0:02:31]}  Qe7 {[%clk 0:01:46]} 14. Bd3 {[%clk 0:02:19]}  Kg7 {[%clk 0:01:45]} 15. h4 {[%clk 0:02:18]}  Nh5 {[%clk 0:01:42]} 16. Bf2 {[%clk 0:02:11]}  Bd7 {[%clk 0:01:28]} 17. Qb5 {[%clk 0:01:55]}  b6 {[%clk 0:01:26]} 18. hxg5 {[%clk 0:01:52]}  Nb4 {[%clk 0:00:55]} 19. gxh6+ {[%clk 0:01:33]}  Rxh6 {[%clk 0:00:54]} 20. Qxd7 {[%clk 0:01:31]}  Qxd7 {[%clk 0:00:53]} 21. cxb4 {[%clk 0:01:31]}  Rah8 {[%clk 0:00:46]} 22. Nh3 {[%clk 0:01:27]}  Nf4 {[%clk 0:00:44]} 23. Bc2 {[%clk 0:01:27]}  Nxg2+ {[%clk 0:00:23]} 24. Kf1 {[%clk 0:01:15]}  Qe6 {[%clk 0:00:23]} 25. Kxg2 {[%clk 0:01:09]}  Rxh3 {[%clk 0:00:22]} 26. Rhg1 {[%clk 0:01:09]}  R8h6 {[%clk 0:00:15]} 27. Be3 {[%clk 0:01:04]}  Rg6+ {[%clk 0:00:14]} 28. Kf2 {[%clk 0:01:02]}  Rh2+ {[%clk 0:00:14]} 29. Kf1 {[%clk 0:01:02]}  Qh3+ {[%clk 0:00:14]} 30. Ke1 {[%clk 0:01:00]}  Rxg1+ {[%clk 0:00:14]} 31. Bxg1 {[%clk 0:01:01]}  Qg3+ {[%clk 0:00:14]} 32. Kf1 {[%clk 0:00:55]}  Qg2+ {[%clk 0:00:14]} 33. Ke1 {[%clk 0:00:56]}  Qe2# {[%clk 0:00:14]} 0-1


[Site "https://www.chess.com"]

[Event "Titled Tuesday Blitz February 28 Late 2023"]
[White "Skaric, Djuro"]
[Black "Burke, Paul"]
[WhiteFideId "934569"]
[BlackFideId "2605767"]
[WhiteElo "2282"]
[BlackElo "1905"]
[Result "1-0"]
[Round "10"]
[TimeControl "180+2"]
[Date "2023.02.28"]
[WhiteClock "0:02:01"]
[BlackClock "0:00:01"]

1. g3 {[%clk 0:03:00]}  a6 {[%clk 0:02:43]} 2. Bg2 {[%clk 0:03:01]}  d6 {[%clk 0:02:43]} 3. d4 {[%clk 0:03:01]}  Nd7 {[%clk 0:02:43]} 4. c4 {[%clk 0:03:02]}  g6 {[%clk 0:02:42]} 5. Nc3 {[%clk 0:03:03]}  Bg7 {[%clk 0:02:42]} 6. e4 {[%clk 0:03:04]}  e5 {[%clk 0:02:42]} 7. Nge2 {[%clk 0:03:04]}  Ne7 {[%clk 0:02:42]} 8. O-O {[%clk 0:03:03]}  O-O {[%clk 0:02:41]} 9. h3 {[%clk 0:03:02]}  h6 {[%clk 0:02:40]} 10. Nd5 {[%clk 0:03:02]}  c6 {[%clk 0:02:39]} 11. Nxe7+ {[%clk 0:03:02]}  Qxe7 {[%clk 0:02:39]} 12. d5 {[%clk 0:03:02]}  c5 {[%clk 0:02:32]} 13. Be3 {[%clk 0:03:01]}  f5 {[%clk 0:02:31]} 14. Qd3 {[%clk 0:02:59]}  Nf6 {[%clk 0:02:22]} 15. f3 {[%clk 0:02:56]}  Bd7 {[%clk 0:02:07]} 16. Rab1 {[%clk 0:02:55]}  Rab8 {[%clk 0:02:04]} 17. b4 {[%clk 0:02:55]}  b6 {[%clk 0:02:04]} 18. Rb3 {[%clk 0:02:53]}  fxe4 {[%clk 0:02:00]} 19. fxe4 {[%clk 0:02:49]}  Nh5 {[%clk 0:01:58]} 20. Rfb1 {[%clk 0:02:48]}  cxb4 {[%clk 0:01:34]} 21. Rxb4 {[%clk 0:02:46]}  b5 {[%clk 0:01:20]} 22. c5 {[%clk 0:02:45]}  dxc5 {[%clk 0:01:19]} 23. d6 {[%clk 0:02:45]}  Qe6 {[%clk 0:01:07]} 24. Bxc5 {[%clk 0:02:37]}  Qxa2 {[%clk 0:00:56]} 25. R4b2 {[%clk 0:02:36]}  Qe6 {[%clk 0:00:55]} 26. Nc3 {[%clk 0:02:31]}  Bc6 {[%clk 0:00:41]} 27. Nd5 {[%clk 0:02:29]}  Bxd5 {[%clk 0:00:41]} 28. exd5 {[%clk 0:02:24]}  Qf5 {[%clk 0:00:30]} 29. Qxf5 {[%clk 0:02:19]}  gxf5 {[%clk 0:00:28]} 30. g4 {[%clk 0:02:19]}  fxg4 {[%clk 0:00:25]} 31. hxg4 {[%clk 0:02:19]}  Nf6 {[%clk 0:00:25]} 32. d7 {[%clk 0:02:12]}  Nxd7 {[%clk 0:00:24]} 33. Bxf8 {[%clk 0:02:12]}  Bxf8 {[%clk 0:00:20]} 34. Rc2 {[%clk 0:02:08]}  Bc5+ {[%clk 0:00:19]} 35. Kf1 {[%clk 0:02:08]}  Bd4 {[%clk 0:00:19]} 36. Rc7 {[%clk 0:02:07]}  Nf6 {[%clk 0:00:15]} 37. d6 {[%clk 0:02:06]}  Rd8 {[%clk 0:00:09]} 38. Rc6 {[%clk 0:02:06]}  Nxg4 {[%clk 0:00:08]} 39. Bd5+ {[%clk 0:02:04]}  Kg7 {[%clk 0:00:06]} 40. Ke2 {[%clk 0:02:04]}  Ne3 {[%clk 0:00:02]} 41. Be4 {[%clk 0:02:02]}  Nc4 {[%clk 0:00:01]} 42. Rxa6 {[%clk 0:02:01]} 1-0


[Site "https://www.chess.com"]